[Event "*** Titled Tuesday 3|2 Blitz (Early)"]
[Site "Chess.com"]
[Date "2016.11.01"]
[Round "8"]
[White "KestutisLabeckas"]
[Black "darsen_sanzhaev"]
[Result "1-0"]
[WhiteElo "2465"]
[BlackElo "2285"]
[TimeControl "180+2"]
[EndTime "12:45:34 PDT"]
[Termination "KestutisLabeckas won by resignation"]

1. d4 {[%clk 0:03:01.9]} 1... d5 {[%clk 0:03:00.5]} 2. Nf3 {[%clk 0:03:02.6]}
2... c5 {[%clk 0:02:59.6]} 3. e3 {[%clk 0:03:03.4]} 3... Nc6 {[%clk 0:02:59.6]}
4. b3 {[%clk 0:03:04.3]} 4... Bf5 {[%clk 0:02:56.9]} 5. Bb2 {[%clk 0:03:04.6]}
5... Nf6 {[%clk 0:02:58.3]} 6. Bd3 {[%clk 0:02:58.9]} 6... Bxd3 {[%clk
0:02:49.8]} 7. Qxd3 {[%clk 0:03:00.8]} 7... cxd4 {[%clk 0:02:45.2]} 8. exd4
{[%clk 0:02:56.5]} 8... e6 {[%clk 0:02:29.3]} 9. O-O {[%clk 0:02:57.1]} 9... Bd6
{[%clk 0:02:27.3]} 10. c4 {[%clk 0:02:57.5]} 10... O-O {[%clk 0:02:24.1]} 11.
Nc3 {[%clk 0:02:58]} 11... Rc8 {[%clk 0:02:21.4]} 12. Rfd1 {[%clk 0:02:55.4]}
12... b6 {[%clk 0:01:47.4]} 13. Qe2 {[%clk 0:02:52.9]} 13... Re8 {[%clk
0:01:40]} 14. Ne5 {[%clk 0:02:42.4]} 14... Qe7 {[%clk 0:01:24.7]} 15. g3 {[%clk
0:02:27.6]} 15... Bb4 {[%clk 0:01:15.7]} 16. Rac1 {[%clk 0:02:11.3]} 16... dxc4
{[%clk 0:00:59.8]} 17. bxc4 {[%clk 0:02:11.2]} 17... Red8 {[%clk 0:00:51.5]} 18.
Ne4 {[%clk 0:01:52.9]} 18... Nxe5 {[%clk 0:00:39.1]} 19. dxe5 {[%clk 0:01:46.5]}
19... Nxe4 {[%clk 0:00:39.7]} 20. Qxe4 {[%clk 0:01:48]} 20... Qc5 {[%clk
0:00:36.5]} 21. Qb7 {[%clk 0:01:04.4]} 21... a5 {[%clk 0:00:23]} 22. a3 {[%clk
0:00:53.8]} 22... Bxa3 {[%clk 0:00:19.1]} 23. Bxa3 {[%clk 0:00:53.6]} 23... Qxa3
{[%clk 0:00:20.5]} 24. Qxb6 {[%clk 0:00:54]} 24... Rd2 {[%clk 0:00:17.4]} 25. c5
{[%clk 0:00:33.8]} 25... h5 {[%clk 0:00:14.9]} 26. c6 {[%clk 0:00:30.4]} 26...
g6 {[%clk 0:00:10.7]} 27. c7 {[%clk 0:00:25.3]} 27... Qd3 {[%clk 0:00:11.5]} 28.
Rxd2 {[%clk 0:00:23.3]} 28... Qxd2 {[%clk 0:00:12.8]} 29. Qc6 {[%clk 0:00:16.2]}
29... a4 {[%clk 0:00:09.5]} 30. Rb1 {[%clk 0:00:16.6]} 30... a3 {[%clk
0:00:03.2]} 31. Rb8 {[%clk 0:00:16.9]} 31... a2 {[%clk 0:00:02.7]} 32. Rxc8+
{[%clk 0:00:17.4]} 32... Kg7 {[%clk 0:00:04.4]} 33. Ra8 {[%clk 0:00:17.4]} 33...
Qd1+ {[%clk 0:00:03.4]} 34. Kg2 {[%clk 0:00:18.3]} 34... a1=Q {[%clk 0:00:05]}
35. Rxa1 {[%clk 0:00:19.1]} 35... Qxa1 {[%clk 0:00:06.9]} 36. c8=Q {[%clk
0:00:20.2]} 36... Qxe5 {[%clk 0:00:08.8]} 37. Qc3 {[%clk 0:00:20.8]} 1-0

[Event "*** Titled Tuesday 3|2 Blitz (Early)"]
[Site "Chess.com"]
[Date "2016.11.01"]
[Round "8"]
[White "Danirod"]
[Black "Fandorine"]
[Result "0-1"]
[WhiteElo "2490"]
[BlackElo "2636"]
[TimeControl "180+2"]
[EndTime "12:45:48 PDT"]
[Termination "Fandorine won by resignation"]

1. e4 {[%clk 0:03:01.9]} 1... c6 {[%clk 0:02:58.4]} 2. d4 {[%clk 0:03:01.5]}
2... d5 {[%clk 0:02:50.7]} 3. e5 {[%clk 0:03:02.5]} 3... c5 {[%clk 0:02:51.9]}
4. dxc5 {[%clk 0:03:01.6]} 4... Nc6 {[%clk 0:02:51.9]} 5. Nf3 {[%clk 0:03:02.6]}
5... Bg4 {[%clk 0:02:53]} 6. c3 {[%clk 0:03:03.5]} 6... e6 {[%clk 0:02:53.2]} 7.
Be3 {[%clk 0:02:56.8]} 7... a6 {[%clk 0:02:41.1]} 8. Be2 {[%clk 0:02:20.5]} 8...
Nge7 {[%clk 0:02:16.4]} 9. Qa4 {[%clk 0:02:08.9]} 9... Bxf3 {[%clk 0:02:11.8]}
10. Bxf3 {[%clk 0:02:10.8]} 10... Qd7 {[%clk 0:02:04.9]} 11. O-O {[%clk
0:01:54.2]} 11... Nxe5 {[%clk 0:02:04.1]} 12. Qxd7+ {[%clk 0:01:49.6]} 12...
Kxd7 {[%clk 0:02:05.3]} 13. Be2 {[%clk 0:01:50.6]} 13... Nf5 {[%clk 0:02:05.7]}
14. Bd4 {[%clk 0:01:50.2]} 14... Nxd4 {[%clk 0:02:03.6]} 15. cxd4 {[%clk
0:01:52.1]} 15... Nc6 {[%clk 0:02:04.3]} 16. Rd1 {[%clk 0:01:53.6]} 16... g5
{[%clk 0:02:00.9]} 17. Na3 {[%clk 0:01:54.6]} 17... Bg7 {[%clk 0:02:01.7]} 18.
Nc2 {[%clk 0:01:55.9]} 18... h5 {[%clk 0:02:01.5]} 19. b4 {[%clk 0:01:56.8]}
19... g4 {[%clk 0:01:57.2]} 20. a4 {[%clk 0:01:57.5]} 20... Ne7 {[%clk
0:01:50.8]} 21. Bd3 {[%clk 0:01:48.7]} 21... Rhc8 {[%clk 0:01:47.6]} 22. Kf1
{[%clk 0:01:49.2]} 22... a5 {[%clk 0:01:32.7]} 23. b5 {[%clk 0:01:47.4]} 23...
e5 {[%clk 0:01:34.1]} 24. dxe5 {[%clk 0:01:45.3]} 24... Bxe5 {[%clk 0:01:28.7]}
25. c6+ {[%clk 0:01:23.3]} 25... bxc6 {[%clk 0:01:28.9]} 26. bxc6+ {[%clk
0:01:25.2]} 26... Rxc6 {[%clk 0:01:25.7]} 27. Bb5 {[%clk 0:01:24.3]} 27... Bxa1
{[%clk 0:01:25.5]} 28. Rxa1 {[%clk 0:01:23.5]} 28... Kd6 {[%clk 0:01:26.8]} 29.
Bxc6 {[%clk 0:01:21.8]} 29... Nxc6 {[%clk 0:01:28.7]} 30. Rd1 {[%clk 0:01:22.8]}
30... Nb4 {[%clk 0:01:24.7]} 31. Ne3 {[%clk 0:01:23.4]} 31... Rc8 {[%clk
0:01:23.6]} 32. g3 {[%clk 0:01:21.7]} 32... Ke5 {[%clk 0:01:17.5]} 33. Re1
{[%clk 0:01:19.4]} 33... Kf6 {[%clk 0:01:18.3]} 34. Rd1 {[%clk 0:01:20.3]} 34...
Rd8 {[%clk 0:01:09.1]} 35. Rd4 {[%clk 0:01:15.9]} 35... Ke5 {[%clk 0:01:04.7]}
36. Rf4 {[%clk 0:01:14.4]} 36... d4 {[%clk 0:00:50.6]} 37. Nc4+ {[%clk
0:01:15.3]} 37... Ke6 {[%clk 0:00:51.8]} 38. Ke2 {[%clk 0:01:11.6]} 38... Nc6
{[%clk 0:00:34]} 39. Nd2 {[%clk 0:00:54.2]} 39... f5 {[%clk 0:00:31.5]} 40. f3
{[%clk 0:00:52.4]} 40... d3+ {[%clk 0:00:25.7]} 41. Ke3 {[%clk 0:00:52.9]} 41...
Nb4 {[%clk 0:00:25.3]} 42. fxg4 {[%clk 0:00:53.4]} 42... Nd5+ {[%clk 0:00:23.9]}
43. Kf3 {[%clk 0:00:51.8]} 43... hxg4+ {[%clk 0:00:24.6]} 44. Kf2 {[%clk
0:00:52.3]} 44... Nxf4 {[%clk 0:00:25.4]} 45. gxf4 {[%clk 0:00:54.2]} 45... Rh8
{[%clk 0:00:24.4]} 46. Kg3 {[%clk 0:00:55.3]} 46... Rh3+ {[%clk 0:00:24.9]} 47.
Kg2 {[%clk 0:00:56.6]} 47... Re3 {[%clk 0:00:26.3]} 48. Nc4 {[%clk 0:00:56.8]}
48... Re4 {[%clk 0:00:25.9]} 49. Nb2 {[%clk 0:00:56.5]} 49... d2 {[%clk
0:00:26.6]} 50. Kf2 {[%clk 0:00:57.8]} 50... Re1 {[%clk 0:00:26.4]} 0-1

[Event "*** Titled Tuesday 3|2 Blitz (Early)"]
[Site "Chess.com"]
[Date "2016.11.01"]
[Round "8"]
[White "NDePinEsPeRG"]
[Black "Evgeny_Levin"]
[Result "0-1"]
[WhiteElo "2651"]
[BlackElo "2711"]
[TimeControl "180+2"]
[EndTime "12:45:52 PDT"]
[Termination "Evgeny_Levin won by resignation"]

1. e4 {[%clk 0:02:56.3]} 1... c5 {[%clk 0:02:59.4]} 2. Nf3 {[%clk 0:02:57.1]}
2... d6 {[%clk 0:02:59.9]} 3. d4 {[%clk 0:02:58]} 3... cxd4 {[%clk 0:03:00]} 4.
Nxd4 {[%clk 0:02:59.6]} 4... Nf6 {[%clk 0:03:01.2]} 5. Nc3 {[%clk 0:03:01.2]}
5... a6 {[%clk 0:03:02.2]} 6. Be3 {[%clk 0:03:02.1]} 6... Ng4 {[%clk 0:03:02.5]}
7. Bg5 {[%clk 0:03:02.6]} 7... h6 {[%clk 0:03:03.1]} 8. Bh4 {[%clk 0:03:04.3]}
8... g5 {[%clk 0:03:04.2]} 9. Bg3 {[%clk 0:03:06]} 9... Bg7 {[%clk 0:03:05.3]}
10. Qd2 {[%clk 0:03:07.7]} 10... Nc6 {[%clk 0:03:01.3]} 11. Nb3 {[%clk
0:03:09.3]} 11... Be6 {[%clk 0:02:54.6]} 12. h4 {[%clk 0:03:09.6]} 12... gxh4
{[%clk 0:02:43.9]} 13. Bxh4 {[%clk 0:03:10]} 13... Qb6 {[%clk 0:02:40.8]} 14. f3
{[%clk 0:02:46.8]} 14... Ne3 {[%clk 0:02:33.7]} 15. Bf2 {[%clk 0:02:39.2]} 15...
Nxf1 {[%clk 0:02:34]} 16. Kxf1 {[%clk 0:02:39.1]} 16... Qb4 {[%clk 0:02:26.2]}
17. a3 {[%clk 0:02:34.5]} 17... Bxc3 {[%clk 0:02:18.4]} 18. bxc3 {[%clk
0:02:31.5]} 18... Qc4+ {[%clk 0:02:18.9]} 19. Kg1 {[%clk 0:02:31.6]} 19... h5
{[%clk 0:02:00.7]} 20. Rb1 {[%clk 0:02:23.8]} 20... O-O-O {[%clk 0:01:49.8]} 21.
Rh4 {[%clk 0:02:16.2]} 21... Rdg8 {[%clk 0:01:43.9]} 22. Kh1 {[%clk 0:02:02.1]}
22... Qb5 {[%clk 0:01:29]} 23. Qe3 {[%clk 0:01:48.5]} 23... Qg5 {[%clk
0:01:26.8]} 24. Qxg5 {[%clk 0:01:48.2]} 24... Rxg5 {[%clk 0:01:28.7]} 25. Be3
{[%clk 0:01:48.5]} 25... Rg6 {[%clk 0:01:24.3]} 26. Nd4 {[%clk 0:01:42.5]} 26...
Nxd4 {[%clk 0:01:21.4]} 27. cxd4 {[%clk 0:01:41.8]} 27... d5 {[%clk 0:01:22.7]}
28. Rb6 {[%clk 0:01:30.6]} 28... dxe4 {[%clk 0:01:12.7]} 29. fxe4 {[%clk
0:01:30.7]} 29... Rg3 {[%clk 0:01:12.8]} 30. Bf2 {[%clk 0:01:22.4]} 30... Rxa3
{[%clk 0:01:12.5]} 31. d5 {[%clk 0:01:23.2]} 31... Bg4 {[%clk 0:01:11.7]} 32.
Bc5 {[%clk 0:01:18.6]} 32... Ra2 {[%clk 0:01:06]} 33. Bxe7 {[%clk 0:01:18.7]}
33... Rxc2 {[%clk 0:01:04.7]} 34. Kh2 {[%clk 0:01:06]} 34... Re8 {[%clk
0:00:56.2]} 35. d6 {[%clk 0:01:05.7]} 35... Rg8 {[%clk 0:00:50.4]} 36. Kg3
{[%clk 0:01:05.7]} 36... a5 {[%clk 0:00:47.2]} 37. Rh1 {[%clk 0:01:04.8]} 37...
a4 {[%clk 0:00:45.9]} 38. Kf4 {[%clk 0:01:03.5]} 38... a3 {[%clk 0:00:44.8]} 39.
Ke5 {[%clk 0:01:01.3]} 39... a2 {[%clk 0:00:42.4]} 40. Rb4 {[%clk 0:00:55.2]}
40... Be6 {[%clk 0:00:38.7]} 41. Ra1 {[%clk 0:00:51.1]} 41... Rgxg2 {[%clk
0:00:34.3]} 42. Bh4 {[%clk 0:00:42.1]} 42... Rb2 {[%clk 0:00:29.7]} 43. Ra4
{[%clk 0:00:36.6]} 43... Rb5+ {[%clk 0:00:25.5]} 44. Kf6 {[%clk 0:00:36.8]}
44... Kd7 {[%clk 0:00:21.2]} 45. Bg5 {[%clk 0:00:29.1]} 45... Rgxg5 {[%clk
0:00:20]} 0-1

[Event "*** Titled Tuesday 3|2 Blitz (Early)"]
[Site "Chess.com"]
[Date "2016.11.01"]
[Round "8"]
[White "popov_m"]
[Black "Tash_Boy"]
[Result "0-1"]
[WhiteElo "2255"]
[BlackElo "2480"]
[TimeControl "180+2"]
[EndTime "12:45:58 PDT"]
[Termination "Tash_Boy won by resignation"]

1. c4 {[%clk 0:03:01.9]} 1... Nf6 {[%clk 0:02:47.8]} 2. g3 {[%clk 0:03:03]} 2...
g6 {[%clk 0:02:46.9]} 3. Bg2 {[%clk 0:03:04.3]} 3... Bg7 {[%clk 0:02:48.4]} 4.
Nc3 {[%clk 0:03:05.9]} 4... O-O {[%clk 0:02:49]} 5. e4 {[%clk 0:03:07.5]} 5...
d6 {[%clk 0:02:50.2]} 6. Nge2 {[%clk 0:03:09]} 6... c5 {[%clk 0:02:49.2]} 7. O-O
{[%clk 0:03:10.4]} 7... Nc6 {[%clk 0:02:47.7]} 8. d3 {[%clk 0:03:11.4]} 8... Ne8
{[%clk 0:02:43.8]} 9. Be3 {[%clk 0:03:06.5]} 9... Nd4 {[%clk 0:02:42.4]} 10. Qd2
{[%clk 0:03:05.4]} 10... Nc7 {[%clk 0:02:42.5]} 11. Bh6 {[%clk 0:03:05.1]} 11...
Nce6 {[%clk 0:02:31.1]} 12. Bxg7 {[%clk 0:03:04.1]} 12... Kxg7 {[%clk
0:02:31.7]} 13. f4 {[%clk 0:03:03.5]} 13... f5 {[%clk 0:02:30.8]} 14. Rae1
{[%clk 0:03:01.8]} 14... Rb8 {[%clk 0:02:25.9]} 15. b3 {[%clk 0:02:54.9]} 15...
a6 {[%clk 0:02:24.3]} 16. Nd5 {[%clk 0:02:28.2]} 16... Nxe2+ {[%clk 0:02:22.4]}
17. Qxe2 {[%clk 0:02:26.3]} 17... Nd4 {[%clk 0:02:23.6]} 18. Qb2 {[%clk
0:02:26.2]} 18... e6 {[%clk 0:02:22.4]} 19. Ne3 {[%clk 0:02:21.7]} 19... b5
{[%clk 0:02:21.1]} 20. Nc2 {[%clk 0:02:18.1]} 20... Qb6 {[%clk 0:02:21.5]} 21.
Nxd4 {[%clk 0:02:16.5]} 21... cxd4 {[%clk 0:02:21.8]} 22. exf5 {[%clk
0:01:58.9]} 22... gxf5 {[%clk 0:02:21]} 23. Kh1 {[%clk 0:01:28.5]} 23... Bd7
{[%clk 0:02:22.2]} 24. Qe2 {[%clk 0:01:27.1]} 24... Qd8 {[%clk 0:02:16.6]} 25.
c5 {[%clk 0:01:15.2]} 25... dxc5 {[%clk 0:01:55]} 26. Qe5+ {[%clk 0:01:15.9]}
26... Qf6 {[%clk 0:01:56.1]} 27. Qxc5 {[%clk 0:01:12.3]} 27... Rbc8 {[%clk
0:01:57.1]} 28. Qa7 {[%clk 0:01:06.8]} 28... Rf7 {[%clk 0:01:54.6]} 29. Rf2
{[%clk 0:00:45.1]} 29... h5 {[%clk 0:01:52.3]} 30. Qxa6 {[%clk 0:00:35.8]} 30...
h4 {[%clk 0:01:50.5]} 31. Qd6 {[%clk 0:00:33.5]} 31... Rh8 {[%clk 0:01:45.5]}
32. Kg1 {[%clk 0:00:32.8]} 32... Kg8 {[%clk 0:01:27.6]} 33. Re5 {[%clk
0:00:29.6]} 33... Rg7 {[%clk 0:01:23.8]} 34. Qxd4 {[%clk 0:00:27.3]} 34... hxg3
{[%clk 0:01:24.5]} 35. hxg3 {[%clk 0:00:28.3]} 35... Rh6 {[%clk 0:01:24]} 36.
Qe3 {[%clk 0:00:15.9]} 36... Rhg6 {[%clk 0:01:22.9]} 37. Rf3 {[%clk 0:00:15.2]}
37... Bc6 {[%clk 0:01:21.5]} 38. d4 {[%clk 0:00:03]} 38... Bxf3 {[%clk
0:01:20.3]} 39. Qxf3 {[%clk 0:00:04.2]} 39... Rxg3 {[%clk 0:01:20.2]} 40. Qa8+
{[%clk 0:00:06.1]} 40... Kh7 {[%clk 0:01:21.3]} 41. Re2 {[%clk 0:00:06.9]} 41...
Qxd4+ {[%clk 0:01:21.9]} 42. Kh1 {[%clk 0:00:08.1]} 0-1

[Event "*** Titled Tuesday 3|2 Blitz (Early)"]
[Site "Chess.com"]
[Date "2016.11.01"]
[Round "8"]
[White "Paralinch"]
[Black "BillieKimbah"]
[Result "0-1"]
[WhiteElo "2658"]
[BlackElo "2633"]
[TimeControl "180+2"]
[EndTime "12:46:27 PDT"]
[Termination "BillieKimbah won by resignation"]

1. Nf3 {[%clk 0:02:57.2]} 1... Nf6 {[%clk 0:03:00.2]} 2. c4 {[%clk 0:02:51.9]}
2... c5 {[%clk 0:03:00.8]} 3. Nc3 {[%clk 0:02:52]} 3... Nc6 {[%clk 0:03:01.5]}
4. e3 {[%clk 0:02:43.8]} 4... e6 {[%clk 0:03:01.8]} 5. d4 {[%clk 0:02:43.5]}
5... d5 {[%clk 0:03:02.6]} 6. cxd5 {[%clk 0:02:45]} 6... exd5 {[%clk 0:03:03.1]}
7. Bb5 {[%clk 0:02:46.6]} 7... cxd4 {[%clk 0:03:03.2]} 8. exd4 {[%clk
0:02:39.9]} 8... Bd6 {[%clk 0:02:39.8]} 9. O-O {[%clk 0:02:34.2]} 9... O-O
{[%clk 0:02:40.5]} 10. Bg5 {[%clk 0:02:35.1]} 10... Bg4 {[%clk 0:02:37.7]} 11.
Nxd5 {[%clk 0:02:26.4]} 11... Bxh2+ {[%clk 0:02:35.7]} 12. Kxh2 {[%clk
0:02:27.4]} 12... Qxd5 {[%clk 0:02:35.6]} 13. Bxc6 {[%clk 0:02:26.9]} 13... Qxc6
{[%clk 0:02:18.9]} 14. Ne5 {[%clk 0:02:07.6]} 14... Qd6 {[%clk 0:02:03.1]} 15.
Qd3 {[%clk 0:02:08.5]} 15... Nd5 {[%clk 0:01:57.4]} 16. Qg3 {[%clk 0:02:05.7]}
16... Bh5 {[%clk 0:01:50.6]} 17. Bd2 {[%clk 0:01:51.4]} 17... f6 {[%clk
0:01:48.6]} 18. Nc4 {[%clk 0:01:32.7]} 18... Qxg3+ {[%clk 0:01:33.1]} 19. Kxg3
{[%clk 0:01:34.6]} 19... Rfd8 {[%clk 0:01:27.8]} 20. Rfc1 {[%clk 0:01:31.1]}
20... Be8 {[%clk 0:01:19.3]} 21. Ne3 {[%clk 0:01:14.5]} 21... Bc6 {[%clk
0:01:18.9]} 22. Nxd5 {[%clk 0:01:12.3]} 22... Rxd5 {[%clk 0:01:18.4]} 23. Be3
{[%clk 0:01:13.7]} 23... Rad8 {[%clk 0:01:14.2]} 24. b4 {[%clk 0:01:08.1]} 24...
h5 {[%clk 0:01:12.7]} 25. Rc5 {[%clk 0:01:08.5]} 25... Rxc5 {[%clk 0:01:12.9]}
26. bxc5 {[%clk 0:01:09.9]} 26... Kf7 {[%clk 0:01:10.3]} 27. f3 {[%clk
0:01:08.5]} 27... g5 {[%clk 0:01:10.8]} 28. Kf2 {[%clk 0:01:09.7]} 28... h4
{[%clk 0:01:09.7]} 29. Re1 {[%clk 0:01:08.8]} 29... Kg6 {[%clk 0:01:06.4]} 30.
a3 {[%clk 0:01:09.2]} 30... Kf5 {[%clk 0:01:03.3]} 31. Rd1 {[%clk 0:01:02.9]}
31... Rh8 {[%clk 0:01:02.9]} 32. Rh1 {[%clk 0:01:03.3]} 32... Bd5 {[%clk
0:01:02.8]} 33. Ke2 {[%clk 0:00:58.5]} 33... Re8 {[%clk 0:01:03.1]} 34. Kf2
{[%clk 0:00:56.2]} 34... Re6 {[%clk 0:01:03.9]} 35. Rc1 {[%clk 0:00:52.4]} 35...
Ra6 {[%clk 0:01:02.3]} 36. Rc3 {[%clk 0:00:53.5]} 36... Ra5 {[%clk 0:01:03.4]}
37. Bc1 {[%clk 0:00:45.4]} 37... Rb5 {[%clk 0:01:03.1]} 38. Kg1 {[%clk
0:00:37.9]} 38... Rb1 {[%clk 0:01:02.1]} 39. Kf2 {[%clk 0:00:39.2]} 39... Ra1
{[%clk 0:01:00]} 40. Rc2 {[%clk 0:00:38.8]} 40... Bb3 {[%clk 0:00:59.5]} 41. Rc3
{[%clk 0:00:35.9]} 41... Ra2+ {[%clk 0:01:00.2]} 42. Kg1 {[%clk 0:00:37]} 42...
Bd5 {[%clk 0:01:01.2]} 43. Be3 {[%clk 0:00:36.5]} 43... g4 {[%clk 0:00:59.5]}
44. fxg4+ {[%clk 0:00:36.1]} 44... Kxg4 {[%clk 0:01:00.6]} 45. Bf2 {[%clk
0:00:37.6]} 45... Ra1+ {[%clk 0:00:51.6]} 46. Kh2 {[%clk 0:00:39.1]} 46... Rf1
{[%clk 0:00:48.3]} 47. Be3 {[%clk 0:00:40.6]} 47... f5 {[%clk 0:00:43.8]} 48.
Rc2 {[%clk 0:00:42.1]} 48... h3 {[%clk 0:00:34.9]} 49. gxh3+ {[%clk 0:00:40.3]}
49... Kf3 {[%clk 0:00:36.4]} 50. Bg1 {[%clk 0:00:40.6]} 50... f4 {[%clk
0:00:35]} 51. Rb2 {[%clk 0:00:37.2]} 51... Ke4 {[%clk 0:00:33.3]} 52. Re2+
{[%clk 0:00:36.6]} 52... Kf3 {[%clk 0:00:31.1]} 53. Re5 {[%clk 0:00:37.6]} 53...
Be4 {[%clk 0:00:26.9]} 54. d5 {[%clk 0:00:33]} 54... Rd1 {[%clk 0:00:27.6]} 55.
d6 {[%clk 0:00:34.5]} 55... Rd2+ {[%clk 0:00:28.7]} 56. Kh1 {[%clk 0:00:36.1]}
56... Bc6 {[%clk 0:00:29]} 0-1

[Event "*** Titled Tuesday 3|2 Blitz (Early)"]
[Site "Chess.com"]
[Date "2016.11.01"]
[Round "8"]
[White "Frolyanov_D"]
[Black "Gabrielian_Artur"]
[Result "0-1"]
[WhiteElo "2455"]
[BlackElo "2573"]
[TimeControl "180+2"]
[EndTime "12:47:28 PDT"]
[Termination "Gabrielian_Artur won by resignation"]

1. e4 {[%clk 0:03:01.9]} 1... c5 {[%clk 0:03:00.8]} 2. Nf3 {[%clk 0:03:02.9]}
2... d6 {[%clk 0:03:02.3]} 3. d4 {[%clk 0:03:01.5]} 3... cxd4 {[%clk 0:03:03]}
4. Nxd4 {[%clk 0:03:03.4]} 4... Nf6 {[%clk 0:03:04.6]} 5. Nc3 {[%clk 0:03:03.9]}
5... a6 {[%clk 0:03:06.1]} 6. Be3 {[%clk 0:03:04.9]} 6... e6 {[%clk 0:03:07.1]}
7. a4 {[%clk 0:03:01.6]} 7... Be7 {[%clk 0:03:07.1]} 8. Be2 {[%clk 0:03:01.6]}
8... b6 {[%clk 0:03:07.2]} 9. f4 {[%clk 0:02:48.2]} 9... Bb7 {[%clk 0:03:04.1]}
10. Bf3 {[%clk 0:02:49.1]} 10... Qc7 {[%clk 0:03:05]} 11. O-O {[%clk 0:02:49.1]}
11... Nbd7 {[%clk 0:03:05.6]} 12. Qe2 {[%clk 0:02:49.3]} 12... h5 {[%clk
0:03:06]} 13. Kh1 {[%clk 0:02:49.3]} 13... Rc8 {[%clk 0:03:05.1]} 14. Bg1 {[%clk
0:02:49.5]} 14... g6 {[%clk 0:03:03.2]} 15. Rae1 {[%clk 0:02:49.3]} 15... e5
{[%clk 0:02:52.6]} 16. Nd5 {[%clk 0:02:43.9]} 16... Bxd5 {[%clk 0:02:16.6]} 17.
exd5 {[%clk 0:02:45.8]} 17... Qc4 {[%clk 0:02:14.7]} 18. Nc6 {[%clk 0:02:42.3]}
18... Qxe2 {[%clk 0:02:12.4]} 19. Bxe2 {[%clk 0:02:42.7]} 19... Nxd5 {[%clk
0:02:08.2]} 20. Nxe7 {[%clk 0:02:40.4]} 20... Kxe7 {[%clk 0:02:02.5]} 21. fxe5
{[%clk 0:02:41.2]} 21... Nxe5 {[%clk 0:02:01]} 22. c3 {[%clk 0:02:31.8]} 22...
a5 {[%clk 0:01:59.1]} 23. Bf3 {[%clk 0:02:31.9]} 23... Nc7 {[%clk 0:01:54.9]}
24. Bxb6 {[%clk 0:02:31.4]} 24... Ne6 {[%clk 0:01:43.6]} 25. Bxa5 {[%clk
0:02:28.6]} 25... Nc4 {[%clk 0:01:37.1]} 26. Bb4 {[%clk 0:02:14.6]} 26... Nxb2
{[%clk 0:01:38.1]} 27. a5 {[%clk 0:02:14.4]} 27... Nd3 {[%clk 0:01:33.8]} 28.
Ra1 {[%clk 0:02:11.7]} 28... Rc7 {[%clk 0:01:17.3]} 29. a6 {[%clk 0:02:07.6]}
29... Ra7 {[%clk 0:01:18.2]} 30. Ra5 {[%clk 0:01:22.5]} 30... Rb8 {[%clk
0:01:12.6]} 31. Bb7 {[%clk 0:01:01.9]} 31... Ndc5 {[%clk 0:01:02.7]} 32. Bxc5
{[%clk 0:00:54.7]} 32... Nxc5 {[%clk 0:01:03.1]} 33. Bd5 {[%clk 0:00:51.5]}
33... f5 {[%clk 0:01:00.7]} 34. Rfa1 {[%clk 0:00:48.9]} 34... Rxa6 {[%clk
0:00:56.7]} 35. Rxa6 {[%clk 0:00:42.6]} 35... Nxa6 {[%clk 0:00:56.4]} 36. g4
{[%clk 0:00:40.2]} 36... Nc5 {[%clk 0:00:44.5]} 37. g5 {[%clk 0:00:31.2]} 37...
Rd8 {[%clk 0:00:23.4]} 38. h4 {[%clk 0:00:29.4]} 38... Nd7 {[%clk 0:00:18.3]}
39. Ra7 {[%clk 0:00:28]} 39... Kf8 {[%clk 0:00:19.4]} 40. c4 {[%clk 0:00:27.5]}
40... Ne5 {[%clk 0:00:20.2]} 41. Kg2 {[%clk 0:00:27.2]} 41... Rb8 {[%clk
0:00:20.8]} 42. Rh7 {[%clk 0:00:24.9]} 42... Rb2+ {[%clk 0:00:21]} 43. Kg3
{[%clk 0:00:25.3]} 43... Rb3+ {[%clk 0:00:21.9]} 44. Kg2 {[%clk 0:00:26]} 44...
f4 {[%clk 0:00:22.8]} 45. Rh8+ {[%clk 0:00:25.4]} 45... Ke7 {[%clk 0:00:22.4]}
46. Rh7+ {[%clk 0:00:26.3]} 46... Kd8 {[%clk 0:00:23.8]} 47. Rh8+ {[%clk
0:00:27.4]} 47... Kc7 {[%clk 0:00:22.8]} 48. Rf8 {[%clk 0:00:28.1]} 48... Rg3+
{[%clk 0:00:23.7]} 49. Kf1 {[%clk 0:00:28.2]} 49... Rg4 {[%clk 0:00:24.5]} 50.
Re8 {[%clk 0:00:14.8]} 50... Rxh4 {[%clk 0:00:24.7]} 51. c5 {[%clk 0:00:16]}
51... Ng4 {[%clk 0:00:18.9]} 52. Re7+ {[%clk 0:00:15.4]} 52... Kd8 {[%clk
0:00:20.2]} 53. cxd6 {[%clk 0:00:16.6]} 53... Ne3+ {[%clk 0:00:21.5]} 54. Rxe3
{[%clk 0:00:11.1]} 54... fxe3 {[%clk 0:00:22.1]} 55. Ke2 {[%clk 0:00:10]} 55...
Rd4 {[%clk 0:00:22.4]} 56. Bf7 {[%clk 0:00:09.3]} 56... Rxd6 {[%clk 0:00:23.5]}
57. Kxe3 {[%clk 0:00:10.6]} 57... Ke7 {[%clk 0:00:24.8]} 58. Bb3 {[%clk
0:00:11.1]} 58... Rb6 {[%clk 0:00:25.5]} 59. Bc2 {[%clk 0:00:11.3]} 59... Kf7
{[%clk 0:00:26.8]} 0-1